fUSD/lending_fUSD_20240101
["ID","MTS","AMOUNT","RATE_DAILY","PERIOD"]
[309773737,1704109876358,-500.0,0.0003863,2]
[309773738,1704109876368,-500.0,0.0003863,7]
[309773739,1704109876378,-500.0,0.0003863,2]
[309773740,1704109876389,-461.39520523,0.0003863,2]
[309773741,1704109876399,-500.0,0.0003863,2]
[309773742,1704109876410,-720.31,0.0003863,2]
[309773743,1704109876420,-500.0,0.0003863,2]
[309773744,1704109876429,-566.28,0.0003863,2]
[309773745,1704109876439,-500.0,0.0003863,2]
[309773746,1704109876450,-500.0,0.0003863,2]
[309773747,1704109876460,-500.0,0.0003863,2]
[309773748,1704109876470,-500.0,0.0003863,2]
[309773749,1704109876480,-550.12,0.0003863,2]
[309773750,1704109876490,-500.0,0.0003863,2]
[309773751,1704109876499,-500.0,0.0003863,2]
[309773752,1704109876509,-150.0,0.0003863,2]
[309773753,1704109876519,-764.22,0.0003863,2]
[309773754,1704109876529,-500.0,0.0003863,2]
[309773755,1704109876539,-500.0,0.0003863,2]
[309773756,1704109876550,-500.0,0.0003863,2]
[309773757,1704109876559,-777.48,0.0003863,2]
[309773758,1704109876569,-500.0,0.0003863,2]
[309773759,1704109876579,-500.0,0.0003863,2]
[309773760,1704109876588,-500.0,0.0003863,2]
[309773761,1704109876598,-500.0,0.0003863,2]
[309773762,1704109876608,-355.29491136,0.0003863,2]
[309773763,1704109876617,-500.0,0.0003863,2]
[309773764,1704109876627,-500.0,0.0003863,2]
[309773765,1704109876637,-1110.04,0.0003863,2]
[309773766,1704109876647,-928.23,0.0003863,2]
[309773767,1704109876658,-494.37461374,0.0003863,2]
[309773768,1704109876668,-500.0,0.0003863,2]
[309773769,1704109876680,-500.0,0.0003863,2]
[309773770,1704109876690,-500.0,0.0003863,2]
[309773771,1704109876699,-500.0,0.0003863,2]
[309773772,1704109876709,-2601.12,0.0003863,2]
[309773773,1704109876719,-500.0,0.0003863,2]
[309773774,1704109876730,-486.23315491,0.0003863,2]
[309773775,1704109876740,-201.67593131,0.0003863,2]
[309773776,1704109876751,-500.0,0.0003863,2]
[309773777,1704109876762,-533.05,0.0003863,2]
[309773778,1704109876772,-719.76,0.0003863,2]
[309773779,1704109876782,-813.41,0.0003863,2]
[309773780,1704109876792,-500.0,0.0003863,2]
[309773781,1704109876803,-500.0,0.0003863,2]
[309773782,1704109876813,-591.79,0.0003863,2]
[309773783,1704109876824,-743.24,0.0003863,2]
[309773784,1704109876834,-500.0,0.0003863,2]
[309773785,1704109876844,-1336.86,0.0003863,2]
[309773786,1704109876854,-500.0,0.0003863,2]
[309773787,1704109876864,-478.41442997,0.0003863,2]
[309773788,1704109876874,-500.0,0.0003863,2]
[309773789,1704109876884,-1003.36,0.0003863,2]
[309773790,1704109876894,-500.0,0.0003863,2]
[309773791,1704109876904,-1027.98,0.0003863,2]
[309773792,1704109876914,-500.0,0.0003863,2]
[309773793,1704109876924,-2255.73,0.0003863,2]
[309773794,1704109876934,-500.0,0.0003863,2]
[309773795,1704109876944,-471.16664533,0.0003863,2]
[309773796,1704109876954,-500.0,0.0003863,2]
[309773797,1704109876965,-1374.7,0.0003863,2]
[309773798,1704109876975,-500.0,0.0003863,2]
[309773799,1704109876985,-504.58,0.0003863,2]
[309773800,1704109876995,-3035.78,0.0003863,5]
[309773801,1704109877006,-500.0,0.0003863,2]
[309773802,1704109877015,-500.0,0.0003863,2]
[309773803,1704109877025,-500.0,0.0003863,2]
[309773804,1704109877034,-500.0,0.0003863,2]
[309773805,1704109877045,-3369.73,0.0003863,2]
[309773806,1704109877054,-3994.99,0.0003863,2]
[309773807,1704109877065,-680.31,0.0003863,2]
[309773808,1704109877075,-500.0,0.0003863,2]
[309773809,1704109877085,-598.43,0.0003863,2]
[309773810,1704109877096,-520.83,0.0003863,2]
[309773811,1704109877106,-382.6432897,0.0003863,2]
[309773812,1704109877116,-342.87468156,0.0003863,2]
[309773813,1704109877126,-785.72,0.0003863,2]
[309773814,1704109877137,-500.0,0.0003863,2]
[309773815,1704109877146,-500.0,0.0003863,2]
[309773816,1704109877161,-500.43,0.0003863,2]
[309773817,1704109877171,-3723.51,0.0003863,5]
[309773818,1704109877181,-603.16,0.0003863,2]
[309773819,1704109877191,-4833.67,0.0003863,2]
[309773820,1704109877201,-606.58,0.0003863,2]
[309773821,1704109877211,-1308.58,0.0003863,2]
[309773822,1704109877221,-669.06,0.0003863,2]
[309773823,1704109877231,-551.88,0.0003863,2]
[309773824,1704109877241,-500.0,0.0003863,2]
[309773825,1704109877251,-1500.0,0.00038635,2]
[309773826,1704109877442,-151.0,0.00038654,7]
[309773827,1704109877454,-4951.4149891,0.00038654,2]
[309773828,1704109877464,-834.0341106,0.00038654,2]
[309773829,1704109877474,-56440.3593435,0.00038654,2]
[309773830,1704109877484,-2231.7225475,0.00038654,2]
[309773831,1704109877494,-214.7785485,0.00038654,2]
[309773832,1704109877504,-150.0,0.00038675,2]
[309773833,1704109877514,-1210290.300138,0.0003868,3]
[309773834,1704109877524,-249.025847,0.0003868,7]
[309773835,1704109877534,-249.025847,0.0003868,7]
[309773836,1704109877544,-1285.82496731,0.00038683,2]
[309773837,1704109877555,-250.0,0.00038685,2]
[309773838,1704109877567,-2489.46468024,0.00038688,3]
[309773839,1704109877577,-161.16,0.00038689,2]
[309773840,1704109877587,-1864.85228325,0.0003869,12]
[309773841,1704109877597,-222.22222,0.00038698,6]
[309773842,1704109877607,-1000.0,0.000387,7]
[309773843,1704109877616,-158.46231698,0.000387,2]
[309773844,1704109877626,-150.0,0.00038705,2]
[309773845,1704109877635,-1347.12922645,0.00038707,2]
[309773846,1704109877645,-150.0,0.0003874,120]
[309773847,1704109877654,-209.0,0.0003874,2]
[309773848,1704109877664,-250.0,0.0003875,30]
[309773849,1704109877674,-207.0,0.0003875,2]
[309773850,1704109877683,-205.0,0.0003875,2]
[309773851,1704109877693,-155.21,0.0003875,2]
[309773852,1704109877703,-981796.05,0.00038761,2]
[309773853,1704109877712,-1199972.95,0.00038761,2]
[309773854,1704109877722,-898.1959106,0.00038762,2]
[309773855,1704109877731,-60782.286132,0.00038762,2]
[309773856,1704109877741,-2198.9356766,0.00038762,2]
[309773857,1704109877750,-211.6231757,0.00038762,2]
[309773858,1704109877760,-5332.3247075,0.00038763,2]
[309773859,1704109877770,-212.0,0.0003877,2]
[309773860,1704109877780,-209.0,0.0003877,2]
[309773861,1704109877789,-2489.46468016,0.00038771,3]
[309773862,1704109877798,-446.45004272,0.00038774,4]
[309773863,1704109877807,-249.025847,0.00038788,7]
[309773864,1704109877818,-249.025851,0.00038788,7]
[309773865,1704109877827,-400808.97564093,0.0003879,2]
[309773866,1704109877836,-2166.1488058,0.00038792,2]
[309773867,1704109877846,-208.4678029,0.00038792,2]
[309773868,1704109877855,-222.22222,0.00038798,6]
[309773869,1704109877865,-150.0,0.00038798,2]
[309773870,1704109877875,-457.22254282,0.000388,4]
[309773871,1704109877885,-24344.52413729,0.000388,2]
[309773872,1704109877895,-118899.58171123,0.000388,7]
[309773873,1704109877904,-157.51,0.000388,3]
[309773874,1704109877913,-626.36705147,0.00038818,3]
[309773875,1704109877923,-5000.0,0.00038818,3]
[309773876,1704109877932,-2489.46468016,0.00038854,3]
[309773877,1704109877943,-152.17,0.00038854,2]
[309773878,1704109877953,-200.29124929,0.00038855,2]
[309773879,1704109877963,-150.0,0.00038878,2]
[309773880,1704109877973,-5000.0,0.0003889,3]
[309773881,1704109877982,-13434.06986805,0.0003889,2]
[309773882,1704109877992,-1500.0,0.00038893,2]
[309773883,1704109878001,-222.22222,0.00038898,6]
[309773884,1704109878011,-503.260908,0.000389,30]
[309773885,1704109878020,-3627.60764992,0.000389,2]
[309773886,1704109878030,-434.337799,0.000389,2]
[309773887,1704109878039,-1293.9847346,0.000389,2]
[309773888,1704109878049,-275.927401,0.000389,2]
[309773889,1704109878059,-1000.0,0.00038903,2]
[309773890,1704109878070,-500.0,0.00038904,2]
[309773891,1704109878079,-500.0,0.00038904,2]
[309773892,1704109878089,-500.0,0.00038904,2]
[309773893,1704109878100,-500.0,0.00038904,2]
[309773894,1704109878110,-500.0,0.00038904,2]
[309773895,1704109878124,-500.0,0.00038904,2]
[309773896,1704109878133,-500.0,0.00038904,2]
[309773897,1704109878144,-500.0,0.00038904,2]
[309773898,1704109878154,-500.0,0.00038904,2]
[309773899,1704109878164,-500.0,0.00038904,2]
[309773900,1704109878173,-500.0,0.00038904,2]
[309773901,1704109878183,-500.0,0.00038904,2]
[309773902,1704109878192,-500.0,0.00038904,2]
[309773903,1704109878202,-500.0,0.00038904,2]
[309773904,1704109878212,-500.0,0.00038904,2]
[309773905,1704109878221,-500.0,0.00038904,2]
[309773906,1704109878230,-500.0,0.00038904,2]
[309773907,1704109878240,-500.0,0.00038904,2]
[309773908,1704109878251,-500.0,0.00038904,2]
[309773909,1704109878261,-500.0,0.00038904,7]
[309773910,1704109878270,-500.0,0.00038904,2]
[309773911,1704109878280,-500.0,0.00038904,2]
[309773912,1704109878290,-720.31,0.00038904,2]
[309773913,1704109878300,-500.0,0.00038904,2]
[309773914,1704109878309,-566.28,0.00038904,2]
[309773915,1704109878320,-500.0,0.00038904,2]
[309773916,1704109878330,-500.0,0.00038904,2]
[309773917,1704109878339,-500.0,0.00038904,2]
[309773918,1704109878350,-500.0,0.00038904,2]
[309773919,1704109878360,-550.12,0.00038904,2]
[309773920,1704109878370,-500.0,0.00038904,2]
[309773921,1704109878379,-500.0,0.00038904,2]
[309773922,1704109878389,-150.0,0.00038904,2]
[309773923,1704109878398,-764.22,0.00038904,2]
[309773924,1704109878408,-500.0,0.00038904,2]
[309773925,1704109878418,-500.0,0.00038904,2]
[309773926,1704109878427,-500.0,0.00038904,2]
[309773927,1704109878437,-777.48,0.00038904,2]
[309773928,1704109878446,-500.0,0.00038904,2]
[309773929,1704109878455,-500.0,0.00038904,2]
[309773930,1704109878466,-475.47435517,0.00038904,2]
[309773931,1704109878475,-500.0,0.00038904,2]
[309773932,1704109878485,-500.0,0.00038904,2]
[309773933,1704109878494,-500.0,0.00038904,2]
[309773934,1704109878504,-1110.04,0.00038904,2]
[309773935,1704109878514,-928.23,0.00038904,2]
[309773936,1704109878524,-500.0,0.00038904,2]
[309773937,1704109878534,-500.0,0.00038904,2]
[309773938,1704109878544,-500.0,0.00038904,2]
[309773939,1704109878553,-500.0,0.00038904,2]
[309773940,1704109878564,-2601.12,0.00038904,2]
[309773941,1704109878573,-500.0,0.00038904,2]
[309773942,1704109878583,-500.0,0.00038904,2]
[309773943,1704109878593,-533.05,0.00038904,2]
[309773944,1704109878603,-719.76,0.00038904,2]
[309773945,1704109878613,-813.41,0.00038904,2]
[309773946,1704109878623,-500.0,0.00038904,2]
[309773947,1704109878632,-500.0,0.00038904,2]
[309773948,1704109878642,-591.79,0.00038904,2]
[309773949,1704109878651,-743.24,0.00038904,2]
[309773950,1704109878660,-500.0,0.00038904,2]
[309773951,1704109878670,-1336.86,0.00038904,2]
[309773952,1704109878679,-500.0,0.00038904,2]
[309773953,1704109878689,-339.90336901,0.00038904,2]
[309773954,1704109878698,-1003.36,0.00038904,2]
[309773955,1704109878708,-500.0,0.00038904,2]
[309773956,1704109878717,-1027.98,0.00038904,2]
[309773957,1704109878726,-500.0,0.00038904,2]
[309773958,1704109878735,-2255.73,0.00038904,2]
[309773959,1704109878745,-521.3309366,0.00038904,2]
[309773960,1704109878754,-500.0,0.00038904,2]
[309773961,1704109878764,-1374.7,0.00038904,2]
[309773962,1704109878773,-500.0,0.00038904,2]
[309773963,1704109878782,-504.58,0.00038904,2]
[309773964,1704109878792,-3035.78,0.00038904,5]
[309773965,1704109878801,-500.0,0.00038904,2]
[309773966,1704109878811,-500.0,0.00038904,2]
[309773967,1704109878821,-500.0,0.00038904,2]
[309773968,1704109878830,-500.0,0.00038904,2]
[309773969,1704109878840,-3369.73,0.00038904,2]
[309773970,1704109878850,-3994.99,0.00038904,2]
[309773971,1704109878859,-680.31,0.00038904,2]
[309773972,1704109878869,-500.0,0.00038904,2]
[309773973,1704109878878,-598.43,0.00038904,2]
[309773974,1704109878888,-520.83,0.00038904,2]
[309773975,1704109878897,-785.72,0.00038904,2]
[309773976,1704109878907,-500.0,0.00038904,2]
[309773977,1704109878916,-500.0,0.00038904,2]
[309773978,1704109878926,-500.43,0.00038904,2]
[309773979,1704109878935,-3723.51,0.00038904,5]
[309773980,1704109878944,-603.16,0.00038904,2]
[309773981,1704109878954,-4833.67,0.00038904,2]
[309773982,1704109878963,-606.58,0.00038904,2]
[309773983,1704109878972,-1308.58,0.00038904,2]
[309773984,1704109878982,-669.06,0.00038904,2]
[309773985,1704109878991,-551.88,0.00038904,2]
[309773986,1704109879001,-500.0,0.00038904,2]
[309773987,1704109879011,-1500.0,0.00038916,2]
[309773988,1704109879020,-2489.46468016,0.00038937,3]
[309773989,1704109879030,-5713.2344259,0.00038943,2]
[309773990,1704109879039,-962.3577106,0.00038943,2]
[309773991,1704109879050,-65124.2129204,0.00038943,2]
[309773992,1704109879059,-150.0,0.00038949,2]
[309773993,1704109879069,-1500.0,0.00038956,2]
[309773994,1704109879078,-351.0,0.00038958,30]
[309773995,1704109879087,-1531.88313133,0.00038959,2]
[309773996,1704109879097,-655.6242,0.0003896,30]
[309773997,1704109879106,-300.0,0.00038963,2]
[309773998,1704109879116,-400.0,0.00038965,5]
[309773999,1704109879127,-400.0,0.00038965,5]
[309774000,1704109879136,-3000.00000008,0.00038969,2]
[309774001,1704109879145,-438.03621158,0.0003897,2]
[309774002,1704109879155,-229292.5862878,0.0003897,2]
[309774003,1704109879165,-1968.06946982,0.00038971,2]
[309774004,1704109879175,-160.88894591,0.00038973,2]
[309774005,1704109879185,-35605.6817283,0.00038984,2]
[309774006,1704109879195,-15603.54274255,0.00038984,2]
[309774007,1704109879205,-6094.1441442,0.00038985,2]
[309774008,1704109879215,-1026.5195106,0.00038986,2]
[309774009,1704109879225,-69466.1397088,0.00038986,2]
[309774010,1704109879236,-2133.3619349,0.00038986,2]
[309774011,1704109879246,-205.3124302,0.00038986,2]
[309774012,1704109879256,-300.0,0.00038987,24]
[309774013,1704109879266,-197.15961698,0.00038987,2]
[309774014,1704109879277,-187.36,0.0003899,60]
[309774015,1704109879287,-222.22222,0.00038998,6]
[309774016,1704109879297,-705.54,0.00039,30]
[309774017,1704109879307,-833.39652983,0.00039,4]
[309774018,1704109879318,-4586.42147922,0.00039,4]
[309774019,1704109879328,-195.64901267,0.00039,4]
[309774020,1704109879338,-660951.5696366,0.00039,30]
[309774021,1704109879348,-503.29,0.00039,5]
[309774022,1704109879358,-2383.94646989,0.00039,30]
[309774023,1704109879368,-1000.0,0.00039,5]
[309774024,1704109879379,-1008.6893853,0.00039,2]
[309774025,1704109879389,-900.0,0.00039,40]
[309774026,1704109879399,-30069.0,0.00039,2]
[309774027,1704109879409,-328.23819137,0.00039,10]
[309774028,1704109879419,-35001.0,0.00039,2]
[309774029,1704109879430,-10715.44385176,0.00039,2]
[309774030,1704109879439,-3000.0,0.00039,15]
[309774031,1704109879449,-200.0,0.00039,2]
[309774032,1704109879459,-500.0,0.00039,7]
[309774033,1704109879470,-4530.32534122,0.00039,2]
[309774034,1704109879480,-4530.32534122,0.00039,2]
[309774035,1704109879490,-478.99,0.00039,2]
[309774036,1704109879500,-2299.56,0.00039,2]
[309774037,1704109879510,-364.88569376,0.0003901,30]
[309774038,1704109879520,-3000.0,0.0003901,16]
[309774039,1704109879529,-5000.0,0.00039011,10]
[309774040,1704109879539,-300.0,0.00039015,2]
[309774041,1704109879548,-302.02476776,0.0003902,2]
[309774042,1704109879558,-3000.0,0.0003902,16]
[309774043,1704109879570,-2489.46468016,0.0003902,3]
[309774044,1704109879581,-166.91230757,0.00039029,2]
[309774045,1704109879590,-3000.0,0.0003903,16]
[309774046,1704109879599,-290.18964646,0.00039035,2]
[309774047,1704109879609,-5938.805666,0.0003904,16]
[309774048,1704109879618,-305.50650539,0.0003905,30]
[309774049,1704109879628,-1033555.94255946,0.0003905,18]
[309774050,1704109879638,-546.74684143,0.0003905,10]
[309774051,1704109879647,-10014.4027256,0.0003905,3]
[309774052,1704109879656,-169.81514273,0.0003905,3]
[309774053,1704109879666,-168.70975179,0.0003905,2]
[309774054,1704109879676,-196.23372165,0.0003905,7]
[309774055,1704109879685,-2538.33,0.0003905,13]
[309774056,1704109879695,-6212.99618185,0.0003905,2]
[309774057,1704109879705,-187.98710221,0.0003905,2]
[309774058,1704109879714,-500.0,0.0003905,2]
[309774059,1704109879723,-500.0,0.0003905,2]
[309774060,1704109879765,-599.299303,0.0003905,2]
[309774061,1704109879775,-908969.74600735,0.0003906,7]
[309774062,1704109879785,-400.0,0.0003907,2]
[309774063,1704109879794,-404.91346816,0.0003907,2]
[309774064,1704109879804,-400.0,0.0003907,2]
[309774065,1704109879813,-400.0,0.0003907,2]
[309774066,1704109879823,-150.0,0.00039071,2]
[309774067,1704109879832,-748.00340554,0.00039082,4]
[309774068,1704109879842,-582.8218351,0.00039082,4]
[309774069,1704109879851,-222.22222,0.00039098,8]
[309774070,1704109879860,-2489.46468016,0.00039103,4]
[309774071,1704109879870,-516.77966021,0.00039112,2]
[309774072,1704109879880,-153.822114,0.00039121,2]
[309774073,1704109879890,-354.416999,0.00039121,2]
[309774074,1704109879899,-150.0,0.00039153,120]
[309774075,1704109879909,-400.0,0.0003917,2]
[309774076,1704109879919,-400.0,0.0003917,2]
[309774077,1704109879929,-500.0,0.00039178,2]
[309774078,1704109879938,-500.0,0.00039178,2]
[309774079,1704109879947,-500.0,0.00039178,2]
[309774080,1704109879956,-500.0,0.00039178,2]
[309774081,1704109879966,-500.0,0.00039178,2]
[309774082,1704109879975,-500.0,0.00039178,2]
[309774083,1704109879985,-500.0,0.00039178,2]
[309774084,1704109879995,-500.0,0.00039178,2]
[309774085,1704109880005,-500.0,0.00039178,2]
[309774086,1704109880015,-177.77093534,0.00039178,2]
[309774087,1704109880025,-500.0,0.00039178,2]
[309774088,1704109880035,-482.47,0.00039178,2]
[309774089,1704109880045,-429.16903402,0.00039178,2]
[309774090,1704109880055,-500.0,0.00039178,2]
[309774091,1704109880066,-455.76,0.00039178,2]
[309774092,1704109880076,-500.0,0.00039178,2]
[309774093,1704109880086,-500.0,0.00039178,2]
[309774094,1704109880097,-500.0,0.00039178,2]
[309774095,1704109880109,-500.0,0.00039178,2]
[309774096,1704109880119,-500.0,0.00039178,2]
[309774097,1704109880131,-500.0,0.00039178,2]
[309774098,1704109880141,-500.0,0.00039178,2]
[309774099,1704109880151,-500.0,0.00039178,2]
[309774100,1704109880161,-500.0,0.00039178,2]
[309774101,1704109880171,-500.0,0.00039178,2]
[309774102,1704109880182,-500.0,0.00039178,2]
[309774103,1704109880191,-500.0,0.00039178,2]
[309774104,1704109880202,-500.0,0.00039178,2]
[309774105,1704109880212,-500.0,0.00039178,2]
[309774106,1704109880222,-500.0,0.00039178,7]
[309774107,1704109880231,-500.0,0.00039178,2]
[309774108,1704109880240,-500.0,0.00039178,2]
[309774109,1704109880250,-720.31,0.00039178,2]
[309774110,1704109880260,-500.0,0.00039178,2]
[309774111,1704109880270,-566.28,0.00039178,2]
[309774112,1704109880281,-500.0,0.00039178,2]
[309774113,1704109880292,-500.0,0.00039178,2]
[309774114,1704109880301,-500.0,0.00039178,2]
[309774115,1704109880311,-500.0,0.00039178,2]
[309774116,1704109880322,-550.12,0.00039178,2]
[309774117,1704109880332,-500.0,0.00039178,2]
[309774118,1704109880341,-500.0,0.00039178,2]
[309774119,1704109880351,-150.0,0.00039178,2]
[309774120,1704109880361,-764.22,0.00039178,2]
[309774121,1704109880372,-500.0,0.00039178,2]
[309774122,1704109880383,-500.0,0.00039178,2]
[309774123,1704109880393,-500.0,0.00039178,2]
[309774124,1704109880402,-777.48,0.00039178,2]
[309774125,1704109880412,-257.69100486,0.00039178,2]
[309774126,1704109880422,-500.0,0.00039178,2]
[309774127,1704109880431,-500.0,0.00039178,2]
[309774128,1704109880441,-500.0,0.00039178,2]
[309774129,1704109880452,-500.0,0.00039178,2]
[309774130,1704109880461,-500.0,0.00039178,2]
[309774131,1704109880472,-1110.04,0.00039178,2]
[309774132,1704109880481,-928.23,0.00039178,2]
[309774133,1704109880491,-500.0,0.00039178,2]
[309774134,1704109880502,-500.0,0.00039178,2]
[309774135,1704109880512,-500.0,0.00039178,2]
[309774136,1704109880522,-500.0,0.00039178,2]
[309774137,1704109880532,-2601.12,0.00039178,2]
[309774138,1704109880542,-500.0,0.00039178,2]
[309774139,1704109880552,-500.0,0.00039178,2]
[309774140,1704109880564,-533.05,0.00039178,2]
[309774141,1704109880574,-719.76,0.00039178,2]
[309774142,1704109880585,-813.41,0.00039178,2]
[309774143,1704109880595,-500.0,0.00039178,2]
[309774144,1704109880605,-500.0,0.00039178,2]
[309774145,1704109880615,-591.79,0.00039178,2]
[309774146,1704109880626,-743.24,0.00039178,2]
[309774147,1704109880636,-500.0,0.00039178,2]
[309774148,1704109880645,-1336.86,0.00039178,2]
[309774149,1704109880655,-500.0,0.00039178,2]
[309774150,1704109880665,-1003.36,0.00039178,2]
[309774151,1704109880674,-500.0,0.00039178,2]
[309774152,1704109880684,-1027.98,0.00039178,2]
[309774153,1704109880693,-500.0,0.00039178,2]
[309774154,1704109880703,-2255.73,0.00039178,2]
[309774155,1704109880713,-500.0,0.00039178,2]
[309774156,1704109880723,-1374.7,0.00039178,2]
[309774157,1704109880734,-500.0,0.00039178,2]
[309774158,1704109880743,-504.58,0.00039178,2]
[309774159,1704109880753,-3035.78,0.00039178,5]
[309774160,1704109880763,-500.0,0.00039178,2]
[309774161,1704109880772,-500.0,0.00039178,2]
[309774162,1704109880782,-500.0,0.00039178,2]
[309774163,1704109880791,-500.0,0.00039178,2]
[309774164,1704109880801,-3369.73,0.00039178,2]
[309774165,1704109880810,-3994.99,0.00039178,2]
[309774166,1704109880820,-680.31,0.00039178,2]
[309774167,1704109880829,-500.0,0.00039178,2]
[309774168,1704109880839,-598.43,0.00039178,2]
[309774169,1704109880849,-520.83,0.00039178,2]
[309774170,1704109880859,-785.72,0.00039178,2]
[309774171,1704109880869,-500.0,0.00039178,2]
[309774172,1704109880880,-500.0,0.00039178,2]
[309774173,1704109880890,-500.43,0.00039178,2]
[309774174,1704109880899,-3723.51,0.00039178,5]
[309774175,1704109880908,-603.16,0.00039178,2]
[309774176,1704109880917,-4833.67,0.00039178,2]
[309774177,1704109880926,-606.58,0.00039178,2]
[309774178,1704109880935,-1308.58,0.00039178,2]
[309774179,1704109880945,-669.06,0.00039178,2]
[309774180,1704109880954,-551.88,0.00039178,2]
[309774181,1704109880964,-150.1,0.00039179,2]
[309774182,1704109880973,-2489.46468016,0.00039186,4]
[309774183,1704109880982,-222.22222,0.00039198,8]
[309774184,1704109880993,-210.0,0.000392,2]
[309774185,1704109881002,-209.0,0.000392,2]
[309774186,1704109881012,-207.0,0.000392,2]
[309774187,1704109881022,-205.0,0.000392,2]
[309774188,1704109881031,-209.0,0.000392,2]
[309774189,1704109881041,-1000.0,0.000392,14]
[309774190,1704109881051,-211.0,0.000392,2]
[309774191,1704109881060,-208.0,0.000392,2]
[309774192,1704109881071,-205.0,0.000392,2]
[309774193,1704109881080,-205.0,0.000392,2]
[309774194,1704109881090,-205.0,0.000392,2]
[309774195,1704109881100,-6904.4851,0.000392,2]
[309774196,1704109881110,-6904.4851,0.000392,2]
[309774197,1704109881119,-209.0,0.000392,2]
[309774198,1704109881132,-161.16,0.00039212,2]
[309774199,1704109881142,-155.9,0.0003926,2]
[309774200,1704109881153,-2489.46468016,0.00039269,4]
[309774201,1704109881162,-222.22222,0.00039298,8]
[309774202,1704109881171,-212.0,0.0003932,2]
[309774203,1704109881181,-209.0,0.0003932,2]
[309774204,1704109881191,-2489.46468016,0.00039352,4]
[309774205,1704109881201,-279.45,0.00039359,2]
[309774206,1704109881211,-500.0,0.00039359,4]
[309774207,1704109881221,-500.0,0.00039368,4]
[309774208,1704109881231,-157.41,0.00039376,2]
[309774209,1704109881240,-222.22222,0.00039398,8]
[309774210,1704109881250,-500.0,0.00039427,4]
[309774211,1704109881260,-500.0,0.00039439,4]
[309774212,1704109881270,-500.0,0.00039448,4]
[309774213,1704109881279,-500.0,0.00039452,2]
[309774214,1704109881290,-500.0,0.00039452,2]
[309774215,1704109881300,-500.0,0.00039452,2]
[309774216,1704109881311,-231.88,0.00039452,2]
[309774217,1704109881322,-500.0,0.00039452,2]
[309774218,1704109881332,-500.0,0.00039452,2]
[309774219,1704109881342,-500.0,0.00039452,2]
[309774220,1704109881354,-500.0,0.00039452,2]
[309774221,1704109881364,-500.0,0.00039452,2]
[309774222,1704109881374,-500.0,0.00039452,2]
[309774223,1704109881385,-500.0,0.00039452,2]
[309774224,1704109881396,-500.0,0.00039452,2]
[309774225,1704109881407,-500.0,0.00039452,2]
[309774226,1704109881417,-500.0,0.00039452,2]
[309774227,1704109881428,-500.0,0.00039452,2]
[309774228,1704109881439,-500.0,0.00039452,2]
[309774229,1704109881451,-500.0,0.00039452,7]
[309774230,1704109881462,-500.0,0.00039452,2]
[309774231,1704109881472,-500.0,0.00039452,2]
[309774232,1704109881483,-720.31,0.00039452,2]
[309774233,1704109881494,-500.0,0.00039452,2]
[309774234,1704109881504,-566.28,0.00039452,2]
[309774235,1704109881515,-496.57060152,0.00039452,2]
[309774236,1704109881525,-500.0,0.00039452,2]